fUSD/lending_fUSD_20240126
["ID","MTS","AMOUNT","RATE_DAILY","PERIOD"]
[312826152,1706303432388,-8310.39537342,0.00023,2]
[312826157,1706303437967,-328.92787868,0.00023,2]
[312826160,1706303437989,-739.337599,0.00023,2]
[312826161,1706303438840,-101279.5067162,0.00023,2]
[312826162,1706303438851,-14672.37741943,0.00023,2]
[312826163,1706303438863,-20411.03573374,0.00023,2]
[312826164,1706303438874,-241138.57100737,0.00023,2]
[312826165,1706303438886,-111680.25406663,0.00023,2]
[312826166,1706303438897,-46817.40080614,0.00023,2]
[312826167,1706303438906,-275.89305549,0.00023019,2]
[312826168,1706303438915,-250.0,0.00023042,2]
[312826169,1706303438924,-156.62,0.00023119,2]
[312826170,1706303438933,-250.0,0.00023125,2]
[312826171,1706303438942,-157.39860551,0.00023211,2]
[312826172,1706303438951,-150.54,0.00023223,2]
[312826173,1706303438963,-9501.24685113,0.00023361,2]
[312826174,1706303438976,-12136.50314887,0.00023361,2]
[312826175,1706303438985,-786.74,0.00023844,2]
[312826176,1706303438995,-2000.0,0.00023877,2]
[312826177,1706303439004,-157.39860551,0.00024212,2]
[312826178,1706303439013,-2362.31,0.00024384,2]
[312826179,1706303439022,-607.18,0.00024658,2]
[312826182,1706303439201,-162.02,0.00024658,2]
[312826184,1706303439211,-250.0,0.00024658,2]
[312826186,1706303439221,-156.55,0.00024753,2]
[312826188,1706303439232,-153.20456945,0.00024764,2]
[312826190,1706303439242,-335.0,0.00024856,2]
[312826192,1706303439252,-5240.02,0.00024964,2]
[312826194,1706303439262,-150.99,0.00024964,2]
[312826197,1706303439271,-1313.37068615,0.00025,2]
[312826199,1706303439281,-1251.18330209,0.00025,2]
[312826201,1706303439291,-160.2,0.00025089,2]
[312826203,1706303439300,-157.39860551,0.00025214,2]
[312826205,1706303439309,-289.87,0.00025247,2]
[312826207,1706303439318,-156.45,0.00025508,2]
[312826209,1706303439328,-162.02,0.00025685,2]
[312826211,1706303439338,-157.39860551,0.00026215,2]
[312826213,1706303439346,-186.26,0.000267,2]
[312826215,1706303439355,-162.02,0.00026712,2]
[312826216,1706303439364,-156.45,0.00026861,2]
[312826219,1706303439373,-157.39860551,0.00027217,2]
[312826221,1706303439383,-156.55,0.00027284,2]
[312826223,1706303439392,-150.54,0.00027333,2]
[312826225,1706303439401,-211.84,0.00027397,2]
[312826226,1706303439410,-364.97410652,0.0002747,3]
[312826228,1706303439419,-211.84,0.00027556,2]
[312826230,1706303439428,-224.32,0.00027671,2]
[312826232,1706303439437,-211.84,0.00027714,2]
[312826234,1706303439447,-162.02,0.0002774,2]
[312826236,1706303439456,-211.84,0.00027872,2]
[312826238,1706303439465,-211.84,0.0002803,2]
[312826241,1706303439474,-211.84,0.00028189,2]
[312826243,1706303439484,-156.45,0.00028214,2]
[312826244,1706303439493,-157.39860551,0.00028218,2]
[312826246,1706303439502,-211.84,0.00028347,2]
[312826248,1706303439511,-211.84,0.00028505,2]
[312826249,1706303439521,-2086.76,0.00028612,2]
[312826251,1706303439530,-211.84,0.00028664,2]
[312826252,1706303439539,-224.32,0.00028695,2]
[312826253,1706303439548,-162.02,0.00028767,2]
[312826254,1706303439557,-211.84,0.00028822,2]
[312826255,1706303439566,-2224.1399,0.00029096,2]
[312826256,1706303439579,-500.0,0.00029096,2]
[312826257,1706303439589,-270.7643,0.00029096,2]
[312826258,1706303439598,-2970.53556475,0.00029096,2]
[312826259,1706303439614,-14138.51283004,0.00029096,2]
[312826260,1706303439629,-5403.48247186,0.00029096,2]
[312826261,1706303439641,-4042.566642,0.00029096,2]
[312826262,1706303439652,-7442.804616,0.00029096,2]
[312826263,1706303439663,-1109.82394119,0.00029096,2]
[312826264,1706303439675,-391.45736558,0.00029096,2]
[312826265,1706303439686,-24379.93125978,0.00029096,2]
[312826266,1706303439702,-672.78754432,0.00029096,2]
[312826267,1706303439714,-3201.23736895,0.00029096,2]
[312826268,1706303439725,-1372.06793841,0.00029096,2]
[312826293,1706303440632,-363.143,0.00029096,2]
[312826295,1706303440643,-591.00293679,0.00029096,2]
[312826299,1706303442148,-178920.64652033,0.00029096,2]
[312826300,1706303442158,-157.39860551,0.0002922,2]
[312826301,1706303442169,-156.45,0.00029567,2]
[312826302,1706303442178,-242.75593144,0.00029719,6]
[312826303,1706303442187,-224.32,0.00029719,2]
[312826304,1706303442196,-162.02,0.00029795,2]
[312826305,1706303442206,-156.55,0.00029814,2]
[312826306,1706303442216,-117.19044311,0.000299,2]
[312826307,1706303442230,-219.83940353,0.000299,2]
[312826308,1706303442240,-1522.68059647,0.000299,2]
[312826323,1706303446227,-240.65679579,0.00029095,4]
[312826324,1706303446237,-161.64804085,0.00029899,2]
[312826326,1706303446284,-59.34502915,0.00029899,2]
[312826328,1706303446293,-2035.40497085,0.000299,2]
[312826329,1706303446305,-2776.02874177,0.000299,2]
[312826331,1706303446314,-186.7291363,0.000299,2]
[312826333,1706303446323,-8176.14671719,0.0003,4]
[312826335,1706303446342,-9639.89528863,0.0003,4]
[312826377,1706303448483,221.71839189,0.000199,2]
[312826378,1706303458845,155.0,0.000199,2]
[312826382,1706303608870,164.2189,0.000229,2]
[312826392,1706304632397,-697.96516303,0.00024643,2]
[312826393,1706304632407,-245.92040142,0.00024644,4]
[312826394,1706304632419,-3436.95470211,0.00024644,4]
[312826395,1706304632429,-162.01,0.00024658,2]
[312826396,1706304632438,-550.0,0.00025,3]
[312826397,1706304632448,-162.01,0.00025685,2]
[312826398,1706304632457,-161.29,0.0002637,2]
[312826399,1706304632465,-162.01,0.00026712,2]
[312826400,1706304632474,-600.0,0.00027,3]
[312826401,1706304632483,-500.0,0.00027525,2]
[312826402,1706304632492,-250.0,0.00027525,2]
[312826403,1706304632501,-162.01,0.0002774,2]
[312826404,1706304632510,-867.58,0.00027828,2]
[312826405,1706304632519,-1948.68,0.00027828,2]
[312826406,1706304632529,-118.42141502,0.00027828,2]
[312826407,1706304632540,-2203.04858498,0.00027828,2]
[312826408,1706304632552,-169.54,0.00027915,2]
[312826409,1706304632560,-2000.0,0.00027989,2]
[312826410,1706304632569,-867.58,0.00027989,2]
[312826411,1706304632579,-232.0,0.00028074,2]
[312826412,1706304632588,-867.58,0.0002815,2]
[312826413,1706304632597,-404.7,0.00028288,2]
[312826414,1706304632606,-867.58,0.00028311,2]
[312826415,1706304632615,-1000.0,0.00028354,2]
[312826416,1706304632626,-287.03306979,0.00028354,6]
[312826417,1706304632635,-290.35,0.00028445,2]
[312826418,1706304632644,-867.58,0.00028472,2]
[312826419,1706304632654,-250.0,0.00028574,2]
[312826420,1706304632663,-867.58,0.00028632,2]
[312826421,1706304632672,-161.29,0.00028634,2]
[312826422,1706304632681,-150.54,0.00028724,2]
[312826423,1706304632690,-162.01,0.00028767,2]
[312826424,1706304632699,-867.58,0.00028793,2]
[312826425,1706304632708,-157.15491373,0.000288,2]
[312826426,1706304632717,-1968.59,0.00028836,2]
[312826427,1706304632728,-5284.22,0.00028836,2]
[312826428,1706304632737,-3659.9084,0.000289,2]
[312826429,1706304632746,-2118.905,0.000289,2]
[312826430,1706304632757,-346.54925606,0.000289,2]
[312826431,1706304632769,-6350.91445759,0.000289,2]
[312826432,1706304632781,-316.76816214,0.000289,2]
[312826433,1706304632793,-2062.15,0.000289,2]
[312826434,1706304632808,-698.69319532,0.000289,2]
[312826437,1706304638153,-159.71242889,0.000289,2]
[312826438,1706304638163,-288.34746004,0.00028954,2]
[312826439,1706304638265,-579.23253996,0.00028954,2]
[312826440,1706304638274,-328.68630008,0.00028996,4]
[312826441,1706304638283,-5156.51653684,0.00029,2]
[312826442,1706304638324,-2055.1531,0.00029,2]
[312826443,1706304638336,-57966.02445083,0.00029,2]
[312826444,1706304638384,-1909.80972891,0.00029,2]
[312826445,1706304638396,-2809.37035944,0.00029,2]
[312826446,1706304638407,-1086.93189934,0.00029,2]
[312826447,1706304638418,-3503.5,0.00029,2]
[312826448,1706304639406,-694.270008,0.00029,2]
[312826449,1706304639423,-488.75743333,0.00029,2]
[312826453,1706304640704,-2122.39531641,0.00029,2]
[312826454,1706304640717,-423.20665772,0.00029,2]
[312826455,1706304640728,-4582.99193221,0.00029,2]
[312826456,1706304640739,-675.00552142,0.00029,2]
[312826457,1706304640750,-572.54127002,0.00029,2]
[312826458,1706304640764,-2831.03010878,0.00029,2]
[312826459,1706304640775,-4438.96572087,0.00029,2]
[312826460,1706304640787,-564.2775,0.00029,2]
[312826461,1706304640836,-4338.7,0.00029,2]
[312826462,1706304641531,-838.895,0.00029,2]
[312826463,1706304641588,-1848.14130502,0.00029,2]
[312826464,1706304641600,-1894.04363084,0.00029,2]
[312826465,1706304641612,-400.0,0.00029,2]
[312826481,1706304643202,-380.358969,0.00029,2]
[312826484,1706304643214,-348.60921805,0.00029,2]
[312826486,1706304643225,-5371.76028708,0.00029,2]
[312826488,1706304643237,-1409.60044009,0.00029,2]
[312826490,1706304643248,-1895.729958,0.00029,2]
[312826492,1706304643260,-1734.03922036,0.00029,2]
[312826495,1706304643271,-2055.008778,0.00029,2]
[312826497,1706304643282,-188736.62559334,0.00029,2]
[312826499,1706304643294,-3552.73024344,0.00029,2]
[312826505,1706304643381,-147992.81042793,0.00029,2]
[312826508,1706304643393,-355.0000039,0.00029,2]
[312826510,1706304643405,-521.69233866,0.00029,2]
[312826516,1706304646289,-335.30570427,0.00029,2]
[312826517,1706304646347,-551.28542087,0.00029,2]
[312826518,1706304646359,-768.0,0.00029,2]
[312826519,1706304646410,-267.12499998,0.00029,2]
[312826520,1706304646467,-3029.35537805,0.00029,2]
[312826521,1706304646479,-473.05077416,0.00029,2]
[312826522,1706304646526,-866.29924,0.00029,2]
[312826523,1706304646538,-47390.58438487,0.00029,2]
[312826524,1706304646551,-126969.11414222,0.00029,2]
[312826525,1706304646562,-20055.07270493,0.00029,2]
[312826526,1706304646585,-495.06200404,0.00029,2]
[312826527,1706304646596,-1095.76779495,0.00029,2]
[312826528,1706304646607,-3749.31201977,0.00029,2]
[312826529,1706304646619,-779.38598227,0.00029,2]
[312826530,1706304646630,-1335.57189952,0.00029,2]
[312826536,1706305000131,299.99,0.00026712,12]
[312826606,1706305780562,2016.0,0.00022,2]
[312826636,1706305831525,-300.0,0.00023039,2]
[312826637,1706305831535,-18.74363918,0.00023039,2]
[312826638,1706305831638,-3176.55095335,0.00023039,2]
[312826639,1706305831648,-1062.55691906,0.00023039,2]
[312826640,1706305831657,-249.15908244,0.00023039,2]
[312826641,1706305831667,-191.19525719,0.00023039,2]
[312826642,1706305831676,-215.89206957,0.0002304,2]
[312826643,1706305831686,-2796.19621044,0.0002304,2]
[312826644,1706305831697,-7746.07731529,0.0002304,2]
[312826645,1706305831706,-13034.20202134,0.0002304,2]
[312826646,1706305831716,-4279.3718956,0.00023041,2]
[312826647,1706305831725,-215.43510353,0.00023041,2]
[312826648,1706305831735,-72.46792802,0.00023042,2]
[312826649,1706305831751,-82.53207198,0.00023042,2]
[312826650,1706305831760,-1043.0192466,0.00023042,2]
[312826651,1706305831769,-0.5278333,0.00023043,2]
[312826652,1706305831782,-157.20227117,0.00023043,2]
[312826653,1706305831792,-216.30961419,0.00023139,2]
[312826654,1706305831804,-501.48085518,0.00023139,2]
[312826655,1706305831823,-4697.18745655,0.00023039,2]
[312826656,1706305831834,-8337.01456479,0.00023039,2]
[312826657,1706305831843,-1137.49295905,0.00023139,2]
[312826658,1706305831853,-601.69487616,0.00023139,2]
[312826659,1706305831864,-4466.72920954,0.00023139,2]
[312826685,1706305837445,-336.13,0.00023038,2]
[312826686,1706305837457,-2698.51577863,0.00023038,2]
[312826687,1706305837466,-2624.33968539,0.0002314,2]
[312826688,1706305837475,-290.097996,0.00023144,2]
[312826689,1706305837504,-16104.48841526,0.00023144,2]
[312826690,1706305837618,-2313.71122912,0.00023144,2]
[312826691,1706305837627,-377.11789182,0.00023155,2]
[312826692,1706305837636,-202.97217438,0.00023155,2]
[312826693,1706305837646,-166.76804851,0.00023155,2]
[312826694,1706305837656,-214.32844269,0.00023155,2]
[312826695,1706305837678,-110.38625155,0.00023155,2]
[312826697,1706305837687,-377.39086493,0.00023155,2]
[312826699,1706305837696,-473.77728921,0.00023155,2]
[312826701,1706305837705,-300.0,0.00023157,2]
[312826702,1706305837715,-170.0,0.00023164,2]
[312826703,1706305837724,-15991.15229482,0.0002398,2]
[312826704,1706305837733,-3465.57333161,0.00023999,2]
[312826705,1706305837744,-294.36661831,0.00023999,2]
[312826936,1706305840052,-500.0,0.00023037,2]
[312826938,1706305840064,-152.57469179,0.00023037,2]
[312826941,1706305840074,-543.65105123,0.00023039,2]
[312827009,1706305840841,-42527.22987004,0.00023039,2]
[312827010,1706305840850,-5497.78412409,0.00023999,2]
[312827011,1706305840859,-192.90231929,0.00024002,2]
[312827012,1706305840868,-155.31624059,0.00024002,2]
[312827013,1706305840877,-4628.55776102,0.00024401,2]
[312827014,1706305840886,-494.66439797,0.00024401,2]
[312827015,1706305840895,-248.92495262,0.00024401,2]
[312827016,1706305840905,-11852.1649,0.00024541,2]
[312827017,1706305840913,-155.0,0.00024648,2]
[312827018,1706305840922,-289.07791306,0.00024648,2]
[312827019,1706305840931,-158.86466524,0.00024648,2]
[312827020,1706305840940,-161.84530984,0.00024648,2]
[312827022,1706305841158,-230.58874034,0.00024648,2]
[312827023,1706305841168,-501.64649698,0.00024648,2]
[312827024,1706305841177,-242.58443095,0.00024648,2]
[312827025,1706305841187,-233.29692962,0.00024648,2]
[312827026,1706305841196,-2140.25984846,0.00024648,2]
[312827027,1706305841206,-155.0,0.00024648,2]
[312827028,1706305841215,-859.44810804,0.00024648,2]
[312827029,1706305841224,-726.87796621,0.00024648,2]
[312827030,1706305841233,-16294.27053659,0.00024648,2]
[312827031,1706305841242,-155.24751375,0.00024648,2]
[312827032,1706305841252,-5455.34192852,0.00024648,2]
[312827033,1706305841261,-260.29229258,0.00024648,2]
[312827034,1706305841270,-162.01,0.00024658,2]
[312827035,1706305841280,-162.02,0.00024658,2]
[312827036,1706305841289,-500.0,0.0002505,2]
[312827037,1706305841298,-250.0,0.00025082,2]
[312827038,1706305841307,-23890.0,0.00025082,2]
[312827039,1706305841316,-300.0,0.00025134,2]
[312827040,1706305841327,-170.0,0.00025428,2]
[312827041,1706305841337,-200.0,0.00025482,2]
[312827042,1706305841346,-162.01,0.00025685,2]
[312827043,1706305841355,-162.02,0.00025685,2]
[312827044,1706305841364,-2000.0,0.000257,2]
[312827045,1706305841374,-250.0,0.00025767,2]
[312827046,1706305841383,-1852.42,0.00025801,2]
[312827047,1706305841392,-200.0,0.00025811,2]
[312827048,1706305841401,-176.15,0.00025814,2]
[312827049,1706305841411,-369.24,0.00025881,2]
[312827050,1706305841420,-155.28,0.00025894,2]
[312827051,1706305841429,-250.0,0.00025898,2]
[312827052,1706305841438,-2705.0,0.00026371,2]
[312827053,1706305841447,-800.0,0.00026533,2]
[312827054,1706305841456,-315.88723124,0.00026669,2]
[312827055,1706305841465,-151.6518522,0.00026685,2]
[312827056,1706305841474,-200.0,0.00026712,2]
[312827057,1706305841483,-162.01,0.00026712,2]
[312827058,1706305841492,-162.02,0.00026712,2]
[312827059,1706305841501,-4870.56,0.00027397,2]
[312827060,1706305841510,-369.24,0.00027525,2]
[312827061,1706305841519,-454.56270522,0.00027548,7]
[312827062,1706305841529,-4870.56,0.00027556,2]
[312827063,1706305841537,-432.9,0.00027671,2]
[312827064,1706305841549,-170.0,0.00027691,2]
[312827065,1706305841558,-4870.56,0.00027714,2]
[312827066,1706305841566,-162.01,0.0002774,2]
[312827067,1706305841578,-162.02,0.0002774,2]
[312827068,1706305841586,-3379.45,0.00027844,2]
[312827069,1706305841596,-4870.56,0.00027872,2]
[312827070,1706305841606,-157.73010444,0.00027962,2]
[312827071,1706305841615,-159.78,0.00027992,2]
[312827072,1706305841625,-689.6644542,0.00028,2]
[312827073,1706305841634,-12320.38792651,0.00028,2]
[312827074,1706305841644,-4870.56,0.0002803,2]
[312827075,1706305841654,-4870.56,0.00028189,2]
[312827076,1706305841663,-157.08,0.0002825,2]
[312827077,1706305841673,-4870.56,0.00028347,2]
[312827078,1706305841685,-4870.56,0.00028505,2]
[312827079,1706305841694,-4870.56,0.00028664,2]
[312827080,1706305841702,-200.0,0.00028667,2]
[312827081,1706305841711,-432.9,0.00028695,2]
[312827082,1706305841721,-162.01,0.00028767,2]
[312827083,1706305841730,-162.02,0.00028767,2]
[312827084,1706305841739,-4870.56,0.00028822,2]
[312827085,1706305841748,-155.0,0.00028853,2]
[312827086,1706305841758,-6731.2082,0.00028896,2]
[312827087,1706305841768,-35721.4923,0.00028896,2]
[312827088,1706305841777,-287.60051257,0.00028896,4]
[312827089,1706305841787,-245000.0,0.00028996,2]
[312827090,1706305841796,-1362.62862751,0.00028998,4]
[312827091,1706305841808,-203.45121285,0.00028998,2]
[312827092,1706305841818,-228.52691298,0.00028998,2]
[312827093,1706305841831,-697.28885181,0.00028999,2]
[312827094,1706305841841,-155.0,0.00028999,2]
[312827095,1706305841850,-1204.52083617,0.00028999,2]
[312827096,1706305841859,-282.89706329,0.00029,2]
[312827097,1706305841869,-610.1887134,0.00029,2]
[312827098,1706305841879,-940.66361279,0.00029,2]
[312827099,1706305841888,-10664.67786704,0.00029096,2]
[312827100,1706305841898,-369.24,0.00029168,2]
[312827101,1706305841909,-167.0,0.00029425,2]
[312827102,1706305841919,-163.7683,0.000296,2]
[312827103,1706305841928,-500.0,0.000296,2]
[312827104,1706305841937,-432.9,0.00029719,2]
[312827105,1706305841947,-157.08,0.00029749,2]
[312827106,1706305841958,-162.01,0.00029795,2]
[312827107,1706305841967,-162.01,0.00029795,2]
[312827108,1706305841977,-162.02,0.00029795,2]
[312827109,1706305841987,-800.0,0.00029849,2]
[312827110,1706305841996,-1064.62156571,0.000299,2]
[312827111,1706305842006,-153.04358823,0.000299,2]
[312827112,1706305842014,-170.0,0.00029955,2]
[312827113,1706305842023,-6253.71474979,0.00029999,2]
[312827114,1706305842033,-52472.70310646,0.00029999,2]
[312827115,1706305842042,-447.65858949,0.00029999,2]
[312827116,1706305842051,-412.67907844,0.00029999,2]
[312827117,1706305842060,-410.3074773,0.00029999,2]
[312827118,1706305842069,-3547.14828996,0.0003,4]
[312827119,1706305842080,-9647.59019732,0.0003,2]
[312827120,1706305842089,-155.0,0.0003,2]
[312827121,1706305842098,-110736.0759719,0.0003,4]
[312827122,1706305842107,-473362.81975626,0.0003,2]
[312827123,1706305842116,-3000.0,0.0003,2]
[312827124,1706305842125,-176.15015525,0.00030321,2]
[312827125,1706305842135,-432.9,0.00030743,2]
[312827126,1706305842144,-369.24,0.00030812,2]
[312827127,1706305842153,-162.02,0.00030822,2]
[312827128,1706305842162,-162.01,0.00030822,2]
[312827129,1706305842171,-162.01,0.00030822,2]
[312827130,1706305842180,-162.02,0.00030822,2]
[312827131,1706305842189,-157.08,0.00031248,2]
[312827132,1706305842198,-10494.42640943,0.00031426,2]
[312827133,1706305842237,-1514.74056671,0.00031426,2]
[312827134,1706305842253,-268.18737251,0.00031426,2]
[312827142,1706305842526,-527.20565135,0.00031426,2]
[312827143,1706305842536,-12736.53,0.00031426,2]
[312827144,1706305842547,-890.0,0.000315,2]
[312827145,1706305842556,-750.0,0.000315,2]
[312827146,1706305842565,-180.0,0.00031644,2]
[312827147,1706305842576,-432.9,0.00031767,2]
[312827148,1706305842585,-162.02,0.00031849,2]
[312827149,1706305842594,-162.01,0.00031849,2]
[312827150,1706305842603,-162.01,0.00031849,2]
[312827151,1706305842611,-162.02,0.00031849,2]
[312827152,1706305842621,-200.0,0.00031853,2]
[312827153,1706305842630,-1064.6215657,0.00032173,3]
[312827154,1706305842640,-170.0,0.00032219,2]
[312827155,1706305842649,-9869.32983332,0.00032333,2]
[312827156,1706305842658,-1250.0,0.00032336,2]
[312827157,1706305842668,-2255.99716379,0.00032336,2]
[312827158,1706305842677,-495.36968582,0.00032336,2]
[312827159,1706305842686,-1552.2505472,0.00032336,7]
[312827160,1706305842695,-1587.67924632,0.00032336,2]
[312827161,1706305842704,-1715.0205381,0.00032336,2]
[312827162,1706305842713,-13298.37555841,0.000324,2]
[312827163,1706305842722,-13298.37555828,0.000324,2]
[312827164,1706305842731,-13298.37555828,0.000324,2]
[312827165,1706305842741,-13298.37555828,0.000324,2]
[312827166,1706305842749,-13298.37555828,0.000324,2]
[312827167,1706305842759,-13298.37555828,0.000324,2]
[312827168,1706305842768,-1308.42345267,0.000324,2]
[312827169,1706305842781,-10417.13708071,0.000324,2]
[312827170,1706305842793,-819.91828808,0.000324,2]
[312827184,1706305845538,-2102.45,0.0002366,2]
[312827185,1706305845550,-1092.84459253,0.0002366,2]
[312827186,1706305845559,-1855.28342842,0.00024647,2]
[312827187,1706305845568,-250.0,0.00027247,2]
[312827188,1706305845580,-13.25788809,0.00032399,2]
[312827189,1706305845591,-202.28493128,0.00032399,2]
[312827190,1706305845601,-752.89673682,0.000324,2]
[312827191,1706305845610,-1378.25562521,0.000324,2]
[312827192,1706305845621,-328.17243008,0.000324,2]
[312827194,1706305846395,-11591.94750299,0.000324,2]
[312827195,1706305846404,-13298.37555828,0.000324,2]
[312827196,1706305846413,-13298.37555828,0.000324,2]
[312827197,1706305846422,-369.24,0.00032456,2]
[312827198,1706305846431,-287.60051252,0.00032611,6]
[312827199,1706305846441,-157.08,0.00032746,2]
[312827200,1706305846450,-150.0,0.000328,21]
[312827201,1706305846459,-162.02,0.00032877,2]
[312827202,1706305846468,-162.01,0.00032877,2]
[312827203,1706305846477,-162.01,0.00032877,2]
[312827204,1706305846487,-162.02,0.00032877,2]
[312827205,1706305846497,-388.59,0.00032877,15]
[312827206,1706305846508,-190431.17886642,0.00032877,2]
[312827207,1706305846522,-7951.18113358,0.00032877,2]
[312827208,1706305846533,-157.73010444,0.00032881,2]
[312827209,1706305846543,-11512.7063217,0.00033,2]
[312827210,1706305846553,-13298.37555828,0.00033009,2]
[312827211,1706305846562,-800.0,0.00033166,2]
[312827212,1706305846572,-218.0,0.000333,22]
[312827213,1706305846583,-13298.37555828,0.0003392,2]
[312827214,1706305846592,-221.6401277,0.00033936,3]
[312827215,1706305846601,-507.16322137,0.00034,4]
[312827216,1706305846612,-1000.0,0.00034,4]
[312827217,1706305846621,-369.24,0.000341,2]
[312827218,1706305846631,-151.0127,0.00034198,6]
[312827219,1706305846642,-157.08,0.00034245,2]
[312827220,1706305846654,-1064.6215657,0.00034445,6]
[312827221,1706305846665,-170.0,0.00034483,2]
[312827222,1706305846675,-151.0127,0.00034498,6]
[312827223,1706305846684,-151.0127,0.00034798,6]
[312827224,1706305846693,-5394.89292731,0.0003483,2]
[312827225,1706305846707,-7903.48263097,0.0003483,2]
[312827226,1706305846717,-155.0,0.00035,2]
[312827227,1706305846727,-155.0,0.00035,2]
[312827228,1706305846736,-3839.90069353,0.00035,2]
[312827229,1706305846745,-933.62597905,0.00035,2]
[312827230,1706305846754,-1563.35161386,0.00035,2]
[312827231,1706305846781,-12056.7,0.00035,2]
[312827234,1706305991113,327.8738,0.0002294,2]
[312827237,1706306032276,1413491.9073,0.00023,2]
[312827238,1706306032314,50000.0,0.00023,2]
[312827294,1706306434607,177.49,0.00025535,10]
[312827311,1706306927630,733.52716987,0.00021,2]
[312827314,1706306982929,1099.55565881,0.00021,2]
[312827318,1706306996928,1099.55565881,0.00021,2]
[312827320,1706307016933,374.44021957,0.00021,2]
[312827321,1706307026765,1024.73961349,0.00021,2]
[312827335,1706307031545,-158.88048592,0.0002267,2]
[312827336,1706307031555,-1062.55691906,0.00022756,2]
[312827337,1706307031565,-1024.19612844,0.00022757,2]
[312827338,1706307031577,-2010.44965019,0.00022757,2]
[312827339,1706307031586,-407.19395765,0.00022895,2]
[312827340,1706307031596,-2686.35639216,0.00022896,2]
[312827341,1706307031608,-316.11110975,0.00022896,2]
[312827342,1706307031620,-766.95294903,0.00022896,2]
[312827343,1706307031633,-882.03685024,0.00022896,2]
[312827344,1706307031645,-4200.0,0.00022896,2]
[312827345,1706307031660,-1220.71277758,0.00022896,2]
[312827346,1706307031672,-364.28267879,0.00022896,2]
[312827347,1706307031685,-2105.34121199,0.00022896,2]
[312827348,1706307031697,-544.02,0.00022896,2]
[312827349,1706307031717,-1607.4402994,0.00022896,2]
[312827350,1706307031729,-1608.68657551,0.00022896,2]
[312827351,1706307031741,-24057.3332219,0.00022896,2]
[312827352,1706307031752,-2491.54823111,0.00022896,2]
[312827353,1706307031764,-220.05862381,0.00022896,2]
[312827354,1706307031774,-691.62137619,0.000229,2]
[312827355,1706307031785,-3528.33992381,0.000229,2]
[312827356,1706307031795,-2093.9119606,0.0002293,2]
[312827357,1706307031805,-1143.2090368,0.0002293,2]
[312827358,1706307031815,-178.09096941,0.0002293,2]
[312827359,1706307031824,-212.57971216,0.0002299,2]
[312827360,1706307031834,-188.85163637,0.00022997,2]
[312827361,1706307031843,-6677.08875803,0.00023,2]
[312827362,1706307031855,-269895.36467026,0.00023,2]
[312827363,1706307031866,-30582.56403542,0.00023,2]
[312827364,1706307031878,-825.61972449,0.00023,2]
[312827365,1706307031890,-502.50678473,0.00023,2]
[312827366,1706307031901,-1073.34824939,0.00023,2]
[312827367,1706307031913,-650.95813285,0.00023,2]
[312827368,1706307031925,-121024.08337178,0.00023,2]
[312827369,1706307031936,-881.51369091,0.00023,2]
[312827370,1706307031948,-656.44624679,0.00023,2]
[312827372,1706307031960,-734.66922033,0.00023,2]
[312827374,1706307031971,-233058.2382939,0.00023,2]
[312827377,1706307031986,-382.0077164,0.00023,2]
[312827379,1706307031997,-2036.85,0.00023,2]
[312827381,1706307032008,-5685.00536452,0.00023,2]
[312827418,1706307037569,-4178.42625734,0.00023,2]
[312827419,1706307037627,-346821.52222648,0.00023,2]
[312827420,1706307037637,-386.65,0.00023,2]
[312827421,1706307037646,-153.12008116,0.0002303,2]
[312827422,1706307037655,-6618.68106314,0.0002313,2]
[312827423,1706307037667,-10162.22106904,0.0002313,2]
[312827424,1706307037676,-499.99,0.0002313,2]
[312827425,1706307037685,-2112.47,0.0002313,2]